[Event "Early-Titled-Tuesday-Blitz-June-18-2024"]
[Site "Chess.com"]
[Date "2024.06.18"]
[Round "9"]
[White "pfalcon1949"]
[Black "tarno17"]
[Result "0-1"]
[WhiteElo "1786"]
[BlackElo "2175"]
[TimeControl "180+1"]
[EndTime "9:47:59 PDT"]
[Termination "tarno17 won by checkmate"]

1. e4 {[%clk 0:03:00.9]} 1... c5 {[%clk 0:02:59.9]} 2. Nf3 {[%clk 0:02:58.6]}
2... e6 {[%clk 0:03:00.2]} 3. d4 {[%clk 0:02:59.1]} 3... cxd4 {[%clk 0:03:01.1]}
4. Nxd4 {[%clk 0:02:58.9]} 4... a6 {[%clk 0:03:01.9]} 5. c4 {[%clk 0:02:57.4]}
5... Qc7 {[%clk 0:03:01.3]} 6. Nc3 {[%clk 0:02:56.3]} 6... Bb4 {[%clk
0:03:01.4]} 7. Qd3 {[%clk 0:02:49.2]} 7... Nf6 {[%clk 0:03:01.7]} 8. Be2 {[%clk
0:02:43.8]} 8... Nc6 {[%clk 0:03:02.1]} 9. Be3 {[%clk 0:02:42.9]} 9... Ne5
{[%clk 0:03:02.4]} 10. Qd2 {[%clk 0:02:36.6]} 10... Nxe4 {[%clk 0:03:01.1]} 11.
Qc2 {[%clk 0:02:28.7]} 11... Nxc3 {[%clk 0:02:55.9]} 12. bxc3 {[%clk 0:02:27.9]}
12... Bd6 {[%clk 0:02:43.5]} 13. Qa4 {[%clk 0:01:59.3]} 13... O-O {[%clk
0:02:38.7]} 14. h3 {[%clk 0:01:59.4]} 14... Ng6 {[%clk 0:02:22.9]} 15. O-O
{[%clk 0:01:55.9]} 15... Bf4 {[%clk 0:02:11.2]} 16. Qc2 {[%clk 0:01:42.7]} 16...
Bxe3 {[%clk 0:01:50.4]} 17. fxe3 {[%clk 0:01:41.8]} 17... Qe5 {[%clk 0:01:48.7]}
18. Qd3 {[%clk 0:01:37.6]} 18... b6 {[%clk 0:01:25.5]} 19. Nf3 {[%clk
0:01:27.4]} 19... Qg3 {[%clk 0:01:19.9]} 20. Rab1 {[%clk 0:01:00.7]} 20... Rb8
{[%clk 0:01:19.2]} 21. c5 {[%clk 0:00:58.4]} 21... b5 {[%clk 0:01:12.3]} 22. c4
{[%clk 0:00:51.6]} 22... b4 {[%clk 0:01:11.3]} 23. a3 {[%clk 0:00:46.8]} 23...
a5 {[%clk 0:01:10.2]} 24. axb4 {[%clk 0:00:46]} 24... axb4 {[%clk 0:01:08.1]}
25. Rb3 {[%clk 0:00:46]} 25... Bb7 {[%clk 0:00:57.9]} 26. Rfb1 {[%clk
0:00:44.9]} 26... Ne5 {[%clk 0:00:43.6]} 27. Qd1 {[%clk 0:00:35.4]} 27... Be4
{[%clk 0:00:38.5]} 28. R1b2 {[%clk 0:00:31.2]} 28... h6 {[%clk 0:00:31.8]} 29.
Qf1 {[%clk 0:00:29.7]} 29... Rfc8 {[%clk 0:00:28.2]} 30. Rxb4 {[%clk 0:00:29.6]}
30... Rxb4 {[%clk 0:00:26.1]} 31. Rxb4 {[%clk 0:00:30.5]} 31... Rxc5 {[%clk
0:00:26]} 32. Rb8+ {[%clk 0:00:29.6]} 32... Kh7 {[%clk 0:00:25.4]} 33. Rb4
{[%clk 0:00:28.3]} 33... Nxf3+ {[%clk 0:00:22.7]} 34. Bxf3 {[%clk 0:00:27.7]}
34... Bxf3 {[%clk 0:00:19.1]} 35. Qxf3 {[%clk 0:00:27.5]} 35... Qxf3 {[%clk
0:00:18.6]} 36. gxf3 {[%clk 0:00:27.3]} 36... d5 {[%clk 0:00:19]} 37. cxd5
{[%clk 0:00:26.3]} 37... Rxd5 {[%clk 0:00:19.9]} 38. Kf2 {[%clk 0:00:26.3]}
38... Rd2+ {[%clk 0:00:19.9]} 39. Kg3 {[%clk 0:00:26.3]} 39... Kg6 {[%clk
0:00:19.5]} 40. e4 {[%clk 0:00:26.7]} 40... Rd3 {[%clk 0:00:16.9]} 41. h4 {[%clk
0:00:26.9]} 41... h5 {[%clk 0:00:16.6]} 42. Ra4 {[%clk 0:00:26]} 42... f6 {[%clk
0:00:13.5]} 43. Ra5 {[%clk 0:00:25.1]} 43... Rd1 {[%clk 0:00:12.6]} 44. Ra6
{[%clk 0:00:23.3]} 44... e5 {[%clk 0:00:12.7]} 45. Kg2 {[%clk 0:00:21.5]} 45...
Rd2+ {[%clk 0:00:11.9]} 46. Kg3 {[%clk 0:00:21.6]} 46... Rc2 {[%clk 0:00:10.1]}
47. Ra3 {[%clk 0:00:20.7]} 47... Rc6 {[%clk 0:00:08.8]} 48. Re3 {[%clk
0:00:20.4]} 48... f5 {[%clk 0:00:09.1]} 49. Ra3 {[%clk 0:00:20.6]} 49... fxe4
{[%clk 0:00:08.8]} 50. fxe4 {[%clk 0:00:20.3]} 50... Rc4 {[%clk 0:00:08.9]} 51.
Re3 {[%clk 0:00:19.9]} 51... Kf6 {[%clk 0:00:09.1]} 52. Kf3 {[%clk 0:00:20]}
52... g5 {[%clk 0:00:09.3]} 53. Ke2 {[%clk 0:00:20.2]} 53... gxh4 {[%clk
0:00:08.9]} 54. Kd3 {[%clk 0:00:19.6]} 54... Rd4+ {[%clk 0:00:08.8]} 55. Kc3
{[%clk 0:00:19.1]} 55... Kg5 {[%clk 0:00:09.7]} 56. Re1 {[%clk 0:00:16]} 56...
Kf4 {[%clk 0:00:09.2]} 57. Rh1 {[%clk 0:00:14.9]} 57... Kg3 {[%clk 0:00:06]} 58.
Rg1+ {[%clk 0:00:13.9]} 58... Kh2 {[%clk 0:00:06.2]} 59. Rg5 {[%clk 0:00:13.3]}
59... h3 {[%clk 0:00:05.9]} 60. Rxh5 {[%clk 0:00:13.3]} 60... Rxe4 {[%clk
0:00:04.1]} 61. Kd3 {[%clk 0:00:12.9]} 61... Re1 {[%clk 0:00:04.7]} 62. Kd2
{[%clk 0:00:12.5]} 62... Rg1 {[%clk 0:00:04.5]} 63. Rxe5 {[%clk 0:00:11.4]}
63... Kh1 {[%clk 0:00:04.5]} 64. Rh5 {[%clk 0:00:10.2]} 64... h2 {[%clk
0:00:05]} 65. Rh8 {[%clk 0:00:09.2]} 65... Rg2+ {[%clk 0:00:05.5]} 66. Ke1
{[%clk 0:00:09.1]} 66... Kg1 {[%clk 0:00:05.8]} 67. Rf8 {[%clk 0:00:03.2]} 67...
h1=Q {[%clk 0:00:06.1]} 68. Rf1+ {[%clk 0:00:02.6]} 68... Kh2 {[%clk 0:00:06.8]}
69. Rxh1+ {[%clk 0:00:02.4]} 69... Kxh1 {[%clk 0:00:07.7]} 70. Kf1 {[%clk
0:00:02.1]} 70... Kh2 {[%clk 0:00:08.3]} 71. Ke1 {[%clk 0:00:01.6]} 71... Kg3
{[%clk 0:00:09]} 72. Kf1 {[%clk 0:00:02.5]} 72... Kf3 {[%clk 0:00:09.7]} 73. Ke1
{[%clk 0:00:03.4]} 73... Rh2 {[%clk 0:00:09.9]} 74. Kf1 {[%clk 0:00:04.3]} 74...
Rh1# {[%clk 0:00:09.8]} 0-1

[Event "Early-Titled-Tuesday-Blitz-June-18-2024"]
[Site "Chess.com"]
[Date "2024.06.18"]
[Round "9"]
[White "rollercoaster29"]
[Black "LeRoidesChampions"]
[Result "0-1"]
[WhiteElo "2510"]
[BlackElo "2664"]
[TimeControl "180+1"]
[EndTime "9:48:06 PDT"]
[Termination "LeRoidesChampions won by resignation"]

1. e4 {[%clk 0:02:48.9]} 1... Nf6 {[%clk 0:02:53]} 2. e5 {[%clk 0:02:46.3]} 2...
Nd5 {[%clk 0:02:53.1]} 3. c4 {[%clk 0:02:46]} 3... Nb6 {[%clk 0:02:53]} 4. d4
{[%clk 0:02:43.6]} 4... d6 {[%clk 0:02:53.4]} 5. exd6 {[%clk 0:02:41.8]} 5...
cxd6 {[%clk 0:02:52.3]} 6. Nf3 {[%clk 0:02:42.1]} 6... Nc6 {[%clk 0:02:52.4]} 7.
Nc3 {[%clk 0:02:38.2]} 7... Bg4 {[%clk 0:02:51]} 8. Be3 {[%clk 0:02:26.6]} 8...
g6 {[%clk 0:02:51.3]} 9. Be2 {[%clk 0:02:25.8]} 9... Bg7 {[%clk 0:02:51.4]} 10.
b3 {[%clk 0:02:18.2]} 10... O-O {[%clk 0:02:50.4]} 11. O-O {[%clk 0:02:17.3]}
11... e5 {[%clk 0:02:44.9]} 12. d5 {[%clk 0:02:12]} 12... Bxf3 {[%clk
0:02:33.4]} 13. Bxf3 {[%clk 0:02:10.3]} 13... Nd4 {[%clk 0:02:33.9]} 14. Bxd4
{[%clk 0:02:03.6]} 14... exd4 {[%clk 0:02:33.7]} 15. Ne4 {[%clk 0:02:00.2]}
15... f5 {[%clk 0:02:32.2]} 16. Ng3 {[%clk 0:01:58.4]} 16... Nd7 {[%clk
0:02:32.1]} 17. Ne2 {[%clk 0:01:56.5]} 17... d3 {[%clk 0:02:30.2]} 18. Qxd3
{[%clk 0:01:53.8]} 18... Bxa1 {[%clk 0:02:30.7]} 19. Rxa1 {[%clk 0:01:54.6]}
19... Ne5 {[%clk 0:02:31.6]} 20. Qc3 {[%clk 0:01:53]} 20... Qf6 {[%clk 0:02:31]}
21. Rd1 {[%clk 0:01:45.2]} 21... Rfe8 {[%clk 0:02:29.5]} 22. Nf4 {[%clk
0:01:40.2]} 22... Nxf3+ {[%clk 0:02:23.3]} 23. Qxf3 {[%clk 0:01:39.7]} 23... Qd4
{[%clk 0:02:23.4]} 24. Ne6 {[%clk 0:01:25.6]} 24... Qb2 {[%clk 0:01:58.3]} 25.
h4 {[%clk 0:01:14.4]} 25... Re7 {[%clk 0:01:50.7]} 26. h5 {[%clk 0:01:10.5]}
26... Qf6 {[%clk 0:01:45.5]} 27. hxg6 {[%clk 0:01:01.2]} 27... hxg6 {[%clk
0:01:44.6]} 28. Qg3 {[%clk 0:00:58.1]} 28... Rh7 {[%clk 0:01:22.5]} 29. Qxd6
{[%clk 0:00:53.6]} 29... Qh4 {[%clk 0:01:19.7]} 30. Kf1 {[%clk 0:00:50.3]} 30...
Qg4 {[%clk 0:01:10.8]} 31. f3 {[%clk 0:00:42.9]} 31... Rh1+ {[%clk 0:01:02]} 32.
Kf2 {[%clk 0:00:35.8]} 32... Qh4+ {[%clk 0:01:01.3]} 33. Ke2 {[%clk 0:00:34.9]}
33... Rxd1 {[%clk 0:00:53.5]} 34. Kxd1 {[%clk 0:00:35.8]} 34... Qh1+ {[%clk
0:00:54]} 35. Ke2 {[%clk 0:00:30]} 35... Qxg2+ {[%clk 0:00:54.2]} 36. Ke3 {[%clk
0:00:30]} 36... Qg1+ {[%clk 0:00:53.9]} 37. Ke2 {[%clk 0:00:30]} 37... Qa1
{[%clk 0:00:28.9]} 38. Qe7 {[%clk 0:00:22.6]} 38... Qxa2+ {[%clk 0:00:27.6]} 39.
Kf1 {[%clk 0:00:22]} 39... Qa1+ {[%clk 0:00:24.7]} 40. Kg2 {[%clk 0:00:21.9]}
40... Qb2+ {[%clk 0:00:24.4]} 41. Kh3 {[%clk 0:00:21.3]} 41... Qh8+ {[%clk
0:00:22.5]} 42. Kg2 {[%clk 0:00:20.1]} 42... Qh7 {[%clk 0:00:22.5]} 43. Qf6
{[%clk 0:00:17.7]} 43... Qf7 {[%clk 0:00:21.8]} 44. Qd4 {[%clk 0:00:13.5]} 44...
b6 {[%clk 0:00:17.9]} 45. f4 {[%clk 0:00:12.6]} 45... Re8 {[%clk 0:00:18.2]} 46.
Kf3 {[%clk 0:00:11.3]} 46... Rxe6 {[%clk 0:00:14.2]} 47. dxe6 {[%clk 0:00:11.3]}
47... Qxe6 {[%clk 0:00:15.1]} 48. Qd8+ {[%clk 0:00:09.9]} 48... Kf7 {[%clk
0:00:15.6]} 49. Qc7+ {[%clk 0:00:09.7]} 49... Qe7 {[%clk 0:00:16.1]} 50. Qc6
{[%clk 0:00:08.5]} 50... Kg7 {[%clk 0:00:14.4]} 51. Qa8 {[%clk 0:00:04.4]} 51...
a5 {[%clk 0:00:13.4]} 52. Qc6 {[%clk 0:00:03.8]} 52... Qb4 {[%clk 0:00:10.5]}
53. Qd7+ {[%clk 0:00:02.7]} 53... Kh6 {[%clk 0:00:10.9]} 54. Qe8 {[%clk
0:00:03.3]} 54... Qxb3+ {[%clk 0:00:10.8]} 55. Kg2 {[%clk 0:00:03.9]} 55... Qc2+
{[%clk 0:00:10.3]} 56. Kf3 {[%clk 0:00:03.8]} 56... Qe4+ {[%clk 0:00:09.9]} 57.
Qxe4 {[%clk 0:00:03.8]} 57... fxe4+ {[%clk 0:00:10.8]} 58. Kxe4 {[%clk
0:00:04.7]} 58... a4 {[%clk 0:00:11.6]} 59. Kd4 {[%clk 0:00:05]} 59... Kh5
{[%clk 0:00:11.4]} 60. Kc3 {[%clk 0:00:05.2]} 60... Kg4 {[%clk 0:00:11.8]} 61.
Kb4 {[%clk 0:00:06.1]} 61... Kxf4 {[%clk 0:00:11.7]} 62. Kxa4 {[%clk 0:00:06.7]}
62... Ke5 {[%clk 0:00:12.3]} 63. Kb5 {[%clk 0:00:07.3]} 63... Kd4 {[%clk
0:00:13]} 64. Kxb6 {[%clk 0:00:04.3]} 64... Kxc4 {[%clk 0:00:13.4]} 65. Kc6
{[%clk 0:00:02.9]} 65... g5 {[%clk 0:00:14.3]} 66. Kd6 {[%clk 0:00:03.8]} 66...
g4 {[%clk 0:00:15.2]} 67. Ke5 {[%clk 0:00:04.4]} 67... g3 {[%clk 0:00:16.1]} 0-1

[Event "Early-Titled-Tuesday-Blitz-June-18-2024"]
[Site "Chess.com"]
[Date "2024.06.18"]
[Round "9"]
[White "Andrei_Skvortsov"]
[Black "Fandorine"]
[Result "0-1"]
[WhiteElo "2775"]
[BlackElo "2947"]
[TimeControl "180+1"]
[EndTime "9:48:07 PDT"]
[Termination "Fandorine won by resignation"]

1. e4 {[%clk 0:03:00.9]} 1... d5 {[%clk 0:02:58.9]} 2. exd5 {[%clk 0:02:59.7]}
2... Qxd5 {[%clk 0:02:59.8]} 3. h3 {[%clk 0:03:00]} 3... Nf6 {[%clk 0:02:56.7]}
4. Nc3 {[%clk 0:02:58.9]} 4... Qd6 {[%clk 0:02:56.5]} 5. d4 {[%clk 0:02:57.7]}
5... g6 {[%clk 0:02:56.5]} 6. Nf3 {[%clk 0:02:57.8]} 6... Bg7 {[%clk 0:02:56.9]}
7. Be2 {[%clk 0:02:57.5]} 7... O-O {[%clk 0:02:57.3]} 8. O-O {[%clk 0:02:55.8]}
8... a6 {[%clk 0:02:57.9]} 9. Re1 {[%clk 0:02:54.4]} 9... b5 {[%clk 0:02:57.6]}
10. Ne5 {[%clk 0:02:53]} 10... Bb7 {[%clk 0:02:57.9]} 11. Bf3 {[%clk 0:02:52.2]}
11... Ra7 {[%clk 0:02:33.3]} 12. Bxb7 {[%clk 0:02:50.8]} 12... Rxb7 {[%clk
0:02:33.3]} 13. Qf3 {[%clk 0:02:51.2]} 13... Rb6 {[%clk 0:02:27.6]} 14. Bf4
{[%clk 0:02:37.9]} 14... Qd8 {[%clk 0:02:26.3]} 15. Rad1 {[%clk 0:02:34.8]}
15... Rd6 {[%clk 0:02:09]} 16. a3 {[%clk 0:02:11.9]} 16... Rxd4 {[%clk
0:01:56.9]} 17. Rxd4 {[%clk 0:02:12.8]} 17... Qxd4 {[%clk 0:01:56.7]} 18. Rd1
{[%clk 0:02:13.4]} 18... Qb6 {[%clk 0:01:53.4]} 19. g4 {[%clk 0:02:07.2]} 19...
Qe6 {[%clk 0:01:42.4]} 20. Nd3 {[%clk 0:01:57.6]} 20... c6 {[%clk 0:01:28.9]}
21. Re1 {[%clk 0:01:56.7]} 21... Qd7 {[%clk 0:01:26.7]} 22. Nc5 {[%clk
0:01:56.8]} 22... Qa7 {[%clk 0:01:26]} 23. Be3 {[%clk 0:01:52.6]} 23... Qc7
{[%clk 0:01:21.8]} 24. Bf4 {[%clk 0:01:50.8]} 24... Qd8 {[%clk 0:01:22]} 25. Nb7
{[%clk 0:01:32.5]} 25... Qb6 {[%clk 0:00:54.6]} 26. Rxe7 {[%clk 0:01:30.8]}
26... b4 {[%clk 0:00:55.2]} 27. axb4 {[%clk 0:01:26.8]} 27... Qxb4 {[%clk
0:00:54.5]} 28. Bd6 {[%clk 0:00:46.8]} 28... Qxb2 {[%clk 0:00:53.5]} 29. g5
{[%clk 0:00:46.9]} 29... Nfd7 {[%clk 0:00:44.1]} 30. Bxb8 {[%clk 0:00:42.5]}
30... Nxb8 {[%clk 0:00:39.2]} 31. Ne4 {[%clk 0:00:40.9]} 31... Qxc2 {[%clk
0:00:30.7]} 32. Nbd6 {[%clk 0:00:36]} 32... Qb1+ {[%clk 0:00:23.9]} 33. Kg2
{[%clk 0:00:33.3]} 33... Qa2 {[%clk 0:00:24.7]} 34. Nf6+ {[%clk 0:00:22.2]}
34... Bxf6 {[%clk 0:00:24.3]} 35. Qxf6 {[%clk 0:00:20.9]} 35... Qd5+ {[%clk
0:00:22.7]} 36. Kg3 {[%clk 0:00:20.3]} 36... Qd3+ {[%clk 0:00:06.6]} 37. Kg2
{[%clk 0:00:19]} 37... Qd5+ {[%clk 0:00:06.8]} 38. Kh2 {[%clk 0:00:19.5]} 38...
c5 {[%clk 0:00:02.5]} 39. Nxf7 {[%clk 0:00:19]} 39... Qxf7 {[%clk 0:00:03.2]}
40. Rxf7 {[%clk 0:00:19.1]} 40... Rxf7 {[%clk 0:00:04.1]} 41. Qd8+ {[%clk
0:00:18.6]} 41... Rf8 {[%clk 0:00:04.8]} 42. Qd5+ {[%clk 0:00:19.2]} 42... Kh8
{[%clk 0:00:05]} 43. Qxc5 {[%clk 0:00:19.6]} 43... Kg8 {[%clk 0:00:05.5]} 44.
Qd5+ {[%clk 0:00:19.4]} 44... Rf7 {[%clk 0:00:06.1]} 45. Qd8+ {[%clk 0:00:19.1]}
45... Rf8 {[%clk 0:00:06.3]} 46. Qd5+ {[%clk 0:00:19.7]} 46... Rf7 {[%clk
0:00:06.9]} 47. Kg2 {[%clk 0:00:16.2]} 47... Nd7 {[%clk 0:00:06.2]} 48. Qa8+
{[%clk 0:00:16.5]} 48... Nf8 {[%clk 0:00:04.4]} 49. Qxa6 {[%clk 0:00:16.3]}
49... Rf5 {[%clk 0:00:05]} 50. Qc4+ {[%clk 0:00:15.8]} 50... Rf7 {[%clk
0:00:05.5]} 51. h4 {[%clk 0:00:15.6]} 51... Kg7 {[%clk 0:00:05.7]} 52. Qd4+
{[%clk 0:00:15.9]} 52... Kg8 {[%clk 0:00:05.8]} 53. Qd5 {[%clk 0:00:13]} 53...
Kg7 {[%clk 0:00:06]} 54. f4 {[%clk 0:00:13.1]} 54... Rf5 {[%clk 0:00:05]} 55.
Qd4+ {[%clk 0:00:12.6]} 55... Kg8 {[%clk 0:00:04.5]} 56. Kg3 {[%clk 0:00:10.6]}
56... Ne6 {[%clk 0:00:03.7]} 57. Qc4 {[%clk 0:00:10.2]} 57... Kf7 {[%clk
0:00:04.1]} 58. Qb3 {[%clk 0:00:06.2]} 58... Ke7 {[%clk 0:00:01.8]} 59. Qb7+
{[%clk 0:00:06.6]} 59... Ke8 {[%clk 0:00:01.3]} 60. Qxh7 {[%clk 0:00:06.9]}
60... Nxf4 {[%clk 0:00:01.2]} 61. Qg8+ {[%clk 0:00:07.3]} 61... Ke7 {[%clk
0:00:01.2]} 62. Qc4 {[%clk 0:00:07]} 62... Nh5+ {[%clk 0:00:01.3]} 63. Kg4
{[%clk 0:00:07.2]} 63... Kf8 {[%clk 0:00:01.3]} 64. Qc8+ {[%clk 0:00:06.9]}
64... Kg7 {[%clk 0:00:01.9]} 65. Qxf5 {[%clk 0:00:07.2]} 65... gxf5+ {[%clk
0:00:02.4]} 66. Kxh5 {[%clk 0:00:07.6]} 66... Kh7 {[%clk 0:00:02.5]} 67. g6+
{[%clk 0:00:06.6]} 67... Kg7 {[%clk 0:00:03.1]} 68. Kg5 {[%clk 0:00:07.3]} 68...
f4 {[%clk 0:00:03.8]} 69. h5 {[%clk 0:00:07.6]} 69... f3 {[%clk 0:00:04.4]} 70.
h6+ {[%clk 0:00:08.2]} 70... Kg8 {[%clk 0:00:04.2]} 71. Kf6 {[%clk 0:00:06]}
71... f2 {[%clk 0:00:04.3]} 72. h7+ {[%clk 0:00:06.5]} 72... Kh8 {[%clk
0:00:04.7]} 0-1

[Event "Early-Titled-Tuesday-Blitz-June-18-2024"]
[Site "Chess.com"]
[Date "2024.06.18"]
[Round "9"]
[White "sokidze"]
[Black "Prizant_academy"]
[Result "0-1"]
[WhiteElo "2783"]
[BlackElo "2971"]
[TimeControl "180+1"]
[EndTime "9:48:08 PDT"]
[Termination "Prizant_academy won by resignation"]

1. d4 {[%clk 0:03:00.9]} 1... d5 {[%clk 0:02:56.7]} 2. Nf3 {[%clk 0:02:58.7]}
2... Nf6 {[%clk 0:02:56.9]} 3. g3 {[%clk 0:02:59]} 3... c5 {[%clk 0:02:56.6]} 4.
Bg2 {[%clk 0:02:58.9]} 4... cxd4 {[%clk 0:02:56.9]} 5. O-O {[%clk 0:02:59.5]}
5... e6 {[%clk 0:02:57.1]} 6. Nxd4 {[%clk 0:02:59.4]} 6... e5 {[%clk 0:02:57.5]}
7. Nb3 {[%clk 0:02:59.8]} 7... Be6 {[%clk 0:02:57.2]} 8. c4 {[%clk 0:02:55.2]}
8... Nc6 {[%clk 0:02:56.9]} 9. cxd5 {[%clk 0:02:51.1]} 9... Nxd5 {[%clk
0:02:57.8]} 10. N1d2 {[%clk 0:02:51.2]} 10... Be7 {[%clk 0:02:49]} 11. Ne4
{[%clk 0:02:50.5]} 11... b6 {[%clk 0:02:47.9]} 12. Nc3 {[%clk 0:02:49.8]} 12...
Ndb4 {[%clk 0:02:38]} 13. a3 {[%clk 0:02:44.9]} 13... Qxd1 {[%clk 0:02:30.7]}
14. Rxd1 {[%clk 0:02:43.9]} 14... Bxb3 {[%clk 0:02:30.7]} 15. axb4 {[%clk
0:02:44.5]} 15... Rc8 {[%clk 0:02:25.7]} 16. Bh3 {[%clk 0:02:42]} 16... Bxd1
{[%clk 0:01:37.2]} 17. Bxc8 {[%clk 0:02:39.9]} 17... Bb3 {[%clk 0:01:37.5]} 18.
Bb7 {[%clk 0:02:37.5]} 18... Kd7 {[%clk 0:01:28.5]} 19. b5 {[%clk 0:02:37.5]}
19... Na5 {[%clk 0:01:26.7]} 20. Bd5 {[%clk 0:02:37.8]} 20... Bxd5 {[%clk
0:01:11.6]} 21. Nxd5 {[%clk 0:02:37.3]} 21... Ra8 {[%clk 0:01:09.7]} 22. Be3
{[%clk 0:02:00.4]} 22... Bd8 {[%clk 0:01:05.7]} 23. Bd2 {[%clk 0:00:38.5]} 23...
Nb3 {[%clk 0:00:54.8]} 24. Rd1 {[%clk 0:00:38.9]} 24... Ke6 {[%clk 0:00:52.3]}
25. Bc3 {[%clk 0:00:38.1]} 25... f6 {[%clk 0:00:50]} 26. e4 {[%clk 0:00:36]}
26... a6 {[%clk 0:00:33.5]} 27. bxa6 {[%clk 0:00:34.8]} 27... Rxa6 {[%clk
0:00:34.4]} 28. Kg2 {[%clk 0:00:18.5]} 28... Nc5 {[%clk 0:00:33.7]} 29. Kf3
{[%clk 0:00:16.1]} 29... Ra4 {[%clk 0:00:28.5]} 30. Bb4 {[%clk 0:00:12.2]} 30...
Nb3 {[%clk 0:00:22.8]} 31. Ke3 {[%clk 0:00:10.8]} 31... Nd4 {[%clk 0:00:21.9]}
32. Bc3 {[%clk 0:00:10.2]} 32... Nb5 {[%clk 0:00:18.7]} 33. f4 {[%clk
0:00:07.7]} 33... Nd6 {[%clk 0:00:17.5]} 34. f5+ {[%clk 0:00:04.8]} 34... Kf7
{[%clk 0:00:10.6]} 35. Nb4 {[%clk 0:00:05.2]} 35... Be7 {[%clk 0:00:09.4]} 36.
Kd3 {[%clk 0:00:04.9]} 36... Nb5 {[%clk 0:00:04.7]} 37. Kc4 {[%clk 0:00:03.9]}
37... Nd4 {[%clk 0:00:04]} 38. Rd2 {[%clk 0:00:01.9]} 38... b5+ {[%clk
0:00:03.8]} 39. Kd5 {[%clk 0:00:01.9]} 39... Bxb4 {[%clk 0:00:04.5]} 40. Bxb4
{[%clk 0:00:02.3]} 40... Rxb4 {[%clk 0:00:05.4]} 41. Rd3 {[%clk 0:00:01.9]}
41... Rxb2 {[%clk 0:00:05.4]} 42. Ra3 {[%clk 0:00:02.6]} 42... g6 {[%clk
0:00:04.3]} 43. Ra7+ {[%clk 0:00:03.2]} 43... Kg8 {[%clk 0:00:04.8]} 44. g4
{[%clk 0:00:02]} 44... gxf5 {[%clk 0:00:04.6]} 45. gxf5 {[%clk 0:00:02]} 45...
Rd2 {[%clk 0:00:04.2]} 46. Kc5 {[%clk 0:00:02]} 46... h5 {[%clk 0:00:03]} 47. h4
{[%clk 0:00:02.2]} 47... Rh2 {[%clk 0:00:03.4]} 48. Kd6 {[%clk 0:00:02.2]} 48...
Rxh4 {[%clk 0:00:02.5]} 49. Ra8+ {[%clk 0:00:01.6]} 49... Kg7 {[%clk 0:00:02.8]}
50. Ra7+ {[%clk 0:00:02.4]} 50... Kh6 {[%clk 0:00:03.4]} 51. Ke7 {[%clk
0:00:03]} 51... Rxe4 {[%clk 0:00:03.4]} 52. Kxf6 {[%clk 0:00:03.6]} 52... Rf4
{[%clk 0:00:04.1]} 53. Kxe5 {[%clk 0:00:04]} 53... Rg4 {[%clk 0:00:03.4]} 54.
Ra6+ {[%clk 0:00:03]} 54... Kg7 {[%clk 0:00:02.8]} 55. Ra7+ {[%clk 0:00:01.4]}
55... Kf8 {[%clk 0:00:03.1]} 56. Ra8+ {[%clk 0:00:01.9]} 56... Ke7 {[%clk
0:00:02.6]} 57. Ra7+ {[%clk 0:00:02.5]} 57... Kd8 {[%clk 0:00:02.7]} 58. Ra8+
{[%clk 0:00:02.9]} 58... Kc7 {[%clk 0:00:03.2]} 59. f6 {[%clk 0:00:03.4]} 59...
Nc6+ {[%clk 0:00:02.5]} 60. Kf5 {[%clk 0:00:03.8]} 60... Nd4+ {[%clk 0:00:01.7]}
61. Ke5 {[%clk 0:00:03.8]} 61... Nc6+ {[%clk 0:00:02.2]} 62. Kf5 {[%clk
0:00:04.5]} 62... Rg1 {[%clk 0:00:02.3]} 63. f7 {[%clk 0:00:05.1]} 63... Rf1+
{[%clk 0:00:02.9]} 64. Kg6 {[%clk 0:00:02.4]} 64... Ne5+ {[%clk 0:00:03.4]} 65.
Kxh5 {[%clk 0:00:01.8]} 65... Rxf7 {[%clk 0:00:04.1]} 66. Kg5 {[%clk 0:00:01.4]}
66... Kd6 {[%clk 0:00:04.2]} 67. Rb8 {[%clk 0:00:01.7]} 67... Kc5 {[%clk
0:00:04.2]} 68. Rc8+ {[%clk 0:00:02.3]} 68... Nc6 {[%clk 0:00:04.7]} 0-1